bitfinex-derivatives/quotes_BTCF0:USTF0_20250125
["timestamp","ask_amount","ask_price","bid_price","bid_amount"]
[1737801179914,0.00014338,104300.0,104290.0,1.64038945]
[1737801180210,0.29403825,104310.0,104300.0,0.26928592]
[1737801180405,0.29403825,104310.0,104300.0,0.63008592]
[1737801180813,0.29403825,104310.0,104300.0,0.66873871]
[1737801181415,0.29403825,104310.0,104300.0,0.61080875]
[1737801181619,0.44744925,104310.0,104300.0,0.57215596]
[1737801184919,0.44744925,104310.0,104300.0,0.58184785]
[1737801185615,0.44744925,104310.0,104300.0,0.65120785]
[1737801187015,0.44744925,104310.0,104300.0,1.17722948]
[1737801187016,0.246711,104310.0,104300.0,1.17722948]
[1737801190716,0.0622,104310.0,104300.0,1.23515944]
[1737801191810,0.0622,104310.0,104300.0,1.46495145]
[1737801192518,0.35428463,104320.0,104300.0,1.35254789]
[1737801192722,0.35428463,104320.0,104310.0,0.57214096]
[1737801193514,0.20088163,104320.0,104310.0,0.63007092]
[1737801193823,0.20656066,104330.0,104320.0,0.153396]
[1737801194016,0.20656066,104330.0,104320.0,0.63005592]
[1737801194412,0.20512218,104330.0,104320.0,0.63005592]
[1737801196022,0.0622,104330.0,104320.0,0.63005592]
[1737801198020,0.0622,104330.0,104320.0,0.63961914]
[1737801200924,0.0622,104330.0,104320.0,1.39543278]
[1737801206133,0.0622,104330.0,104320.0,1.33750282]
[1737801206326,0.248482,104330.0,104320.0,1.40686282]
[1737801207633,0.248482,104330.0,104320.0,1.16812736]
[1737801208835,0.248482,104330.0,104320.0,1.22605732]
[1737801209833,0.248482,104330.0,104320.0,1.16812736]
[1737801211038,0.248482,104330.0,104320.0,1.05278913]
[1737801213938,0.248482,104330.0,104320.0,1.11071909]
[1737801215938,0.0622,104330.0,104320.0,1.11071909]
[1737801216345,0.0622,104330.0,104320.0,1.15170468]
[1737801216840,0.00014338,104340.0,104330.0,0.153382]
[1737801217032,0.00014338,104340.0,104330.0,0.63004192]
[1737801217231,0.00014338,104340.0,104330.0,0.66304192]
[1737801217536,0.00014338,104340.0,104330.0,0.70411899]
[1737801219239,0.00014338,104340.0,104330.0,0.66304192]
[1737801220441,0.00014338,104340.0,104330.0,0.70411899]
[1737801221444,0.00014338,104340.0,104330.0,0.66304192]
[1737801222543,0.00014338,104340.0,104330.0,1.25432813]
[1737801228945,0.0932,104350.0,104340.0,0.153367]
[1737801229145,0.0932,104350.0,104340.0,0.63002692]
[1737801230551,0.0932,104350.0,104340.0,0.62977372]
[1737801234549,0.0932,104350.0,104340.0,1.39204577]
[1737801234846,0.0932,104350.0,104340.0,1.40165068]
[1737801236951,0.0628,104350.0,104340.0,1.40165068]
[1737801237948,0.0628,104350.0,104340.0,1.19546981]
[1737801238949,0.0628,104350.0,104340.0,1.15535854]
[1737801240944,0.0628,104350.0,104340.0,1.19546981]
[1737801241542,0.0628,104350.0,104340.0,1.31113948]
[1737801243255,0.0628,104350.0,104340.0,1.27102821]
[1737801243762,1e-08,104350.0,104340.0,1.27102821]
[1737801245357,0.00014338,104360.0,104350.0,0.153352]
[1737801245656,0.00014338,104360.0,104350.0,0.64140196]
[1737801245956,0.15348138,104360.0,104350.0,0.64140196]
[1737801246958,0.18608138,104360.0,104350.0,0.64140196]
[1737801251163,0.18608138,104360.0,104350.0,1.51543401]
[1737801255363,0.18608138,104360.0,104350.0,1.17043994]
[1737801258659,0.18608138,104360.0,104350.0,1.51543401]
[1737801262569,0.18608138,104360.0,104350.0,1.44611401]
[1737801262765,0.18608138,104360.0,104350.0,1.51543401]
[1737801266281,0.03274338,104360.0,104350.0,1.51543401]
[1737801267469,0.03274338,104360.0,104350.0,1.55555532]
[1737801267974,0.03274338,104360.0,104350.0,1.59419378]
[1737801268874,0.03274338,104360.0,104350.0,1.65212374]
[1737801269663,0.03274338,104360.0,104350.0,1.6551733]
[1737801269870,0.14649424,104370.0,104350.0,1.5018213]
[1737801270068,0.14649424,104370.0,104360.0,0.62999792]
[1737801273470,0.14649424,104370.0,104360.0,0.66859456]
[1737801273673,0.11489424,104370.0,104360.0,0.66859456]
[1737801273975,0.14713762,104380.0,104370.0,0.153323]
[1737801274170,0.14713762,104380.0,104370.0,0.62998292]
[1737801274374,0.14713762,104380.0,104370.0,0.73426614]
[1737801275075,0.14713762,104380.0,104370.0,0.74866614]
[1737801275076,0.11503762,104380.0,104370.0,0.74866614]
[1737801275372,0.31410015,104390.0,104380.0,0.153308]
[1737801275579,0.31410015,104390.0,104380.0,0.69928792]
[1737801279083,0.43999391,104400.0,104380.0,1.22820908]
[1737801279377,0.49792387,104400.0,104390.0,0.41872996]
[1737801279582,0.49792387,104400.0,104390.0,0.48804996]
[1737801279987,0.43999391,104400.0,104390.0,0.48804996]
[1737801280181,0.49792387,104400.0,104390.0,0.48804996]
[1737801281181,0.43999391,104400.0,104390.0,0.48804996]
[1737801283686,0.49792387,104400.0,104390.0,0.48804996]
[1737801283888,0.49792387,104400.0,104390.0,0.48800996]
[1737801284189,0.43999391,104400.0,104390.0,0.48800996]
[1737801284389,0.43999391,104400.0,104390.0,0.65957402]
[1737801284586,0.49792387,104400.0,104390.0,0.65957402]
[1737801286089,0.49792387,104400.0,104390.0,0.60164406]
[1737801287693,0.49792387,104400.0,104390.0,0.53236406]
[1737801287879,0.49792387,104400.0,104390.0,0.60164406]
[1737801288079,0.43999391,104400.0,104390.0,0.60164406]
[1737801288282,0.43999391,104400.0,104390.0,0.65957402]
[1737801288489,0.43999391,104400.0,104390.0,0.48800996]
[1737801288692,0.43999391,104400.0,104390.0,0.64130396]
[1737801297198,0.28670891,104400.0,104390.0,0.64130396]
[1737801297590,0.16583318,104400.0,104390.0,0.64130396]
[1737801298997,0.16583318,104400.0,104390.0,1.0416201]
[1737801299499,0.31911218,104400.0,104390.0,1.0416201]
[1737801302600,0.7957721,104400.0,104390.0,0.40031614]
[1737801302798,0.7957721,104400.0,104390.0,0.35041614]
[1737801302998,0.7957721,104400.0,104390.0,0.30051614]
[1737801304601,0.73784214,104400.0,104390.0,0.30051614]
[1737801305295,0.31911218,104400.0,104390.0,0.5117401]
[1737801305701,0.31911218,104400.0,104390.0,0.8725401]
[1737801308106,0.46203436,104400.0,104390.0,0.57202396]
[1737801308601,0.24301778,104400.0,104390.0,0.66075392]
[1737801308903,0.24301778,104400.0,104390.0,0.76169086]
[1737801309099,0.19990953,104400.0,104390.0,0.71325412]
[1737801309302,0.19990953,104400.0,104390.0,0.77118408]
[1737801309607,0.19990953,104400.0,104390.0,0.71325412]
[1737801310507,0.19990953,104400.0,104390.0,0.67471718]
[1737801311005,0.19990953,104400.0,104390.0,0.73264714]
[1737801311708,0.19990953,104400.0,104390.0,0.7048622]
[1737801312304,0.05698735,104400.0,104390.0,1.57211771]
[1737801314215,0.21026635,104400.0,104390.0,1.57211771]
[1737801316303,0.21026635,104400.0,104390.0,1.22712364]
[1737801320210,0.21026635,104400.0,104390.0,1.19572364]
[1737801320409,0.21026635,104400.0,104390.0,1.11170964]
[1737801320619,0.24126635,104400.0,104390.0,1.11170964]
[1737801321115,0.24126635,104400.0,104390.0,1.02363466]
[1737801323318,0.24126635,104400.0,104390.0,1.17692866]
[1737801323516,0.24126635,104400.0,104390.0,1.26500364]
[1737801324021,0.05698735,104400.0,104390.0,1.26500364]
[1737801324209,0.05698735,104400.0,104390.0,0.7737422]
[1737801333625,0.05698735,104400.0,104390.0,0.74347908]
[1737801335136,0.21026635,104400.0,104390.0,0.68147908]
[1737801335331,0.24286635,104400.0,104390.0,0.68147908]
[1737801335941,0.35849007,104400.0,104390.0,0.3608]
[1737801336130,0.35849007,104400.0,104380.0,0.99294483]
[1737801336131,0.153294,104390.0,104380.0,0.63214483]
[1737801336326,0.27690586,104390.0,104380.0,0.63214483]
[1737801337228,0.219094,104390.0,104380.0,0.68995669]
[1737801337836,0.219094,104390.0,104380.0,0.34496262]
[1737801338535,0.27690586,104390.0,104380.0,0.28715076]
[1737801338833,0.153294,104390.0,104380.0,0.91688248]
[1737801339221,0.153294,104390.0,104380.0,0.94748248]
[1737801339426,0.153294,104390.0,104380.0,0.88967062]
[1737801339633,0.153294,104390.0,104380.0,0.95895062]
[1737801341731,0.153294,104390.0,104380.0,0.98925397]
[1737801342742,0.153294,104390.0,104380.0,1.22813167]
[1737801346341,0.153294,104390.0,104380.0,0.98925397]
[1737801348142,0.25781755,104400.0,104390.0,0.153294]
[1737801348436,0.25781755,104400.0,104390.0,0.66790921]
[1737801350641,0.05698735,104400.0,104390.0,1.18953079]
[1737801352133,0.05698735,104400.0,104390.0,1.03571558]
[1737801353442,0.05698735,104400.0,104390.0,1.12383079]
[1737801354540,0.05698735,104400.0,104390.0,1.46882486]
[1737801355444,0.05698735,104400.0,104390.0,1.61142219]
[1737801361937,0.05698735,104400.0,104390.0,1.26642812]
[1737801372949,0.05698735,104400.0,104390.0,1.61142219]
[1737801375751,0.05698735,104400.0,104390.0,1.58110997]
[1737801378166,0.08599629,104410.0,104390.0,1.63921197]
[1737801378365,0.25775609,104420.0,104410.0,0.153264]
[1737801378667,0.25775609,104420.0,104410.0,0.64110699]
[1737801379168,0.46880908,104420.0,104410.0,0.583304]
[1737801379368,0.50630609,104420.0,104410.0,0.64110699]
[1737801379766,0.50630609,104420.0,104410.0,0.48784299]
[1737801381369,0.56410908,104420.0,104410.0,0.43004]
[1737801381559,0.50630609,104420.0,104410.0,0.43004]
[1737801381760,0.50630609,104420.0,104410.0,0.583304]
[1737801382161,0.24855,104420.0,104410.0,1.10492558]
[1737801383562,0.24855,104420.0,104410.0,1.16272857]
[1737801385471,0.24855,104420.0,104410.0,1.17237248]
[1737801386471,0.36338391,104420.0,104410.0,1.05218027]
[1737801389769,0.36338391,104420.0,104410.0,0.99437728]
[1737801392270,0.36338391,104420.0,104410.0,0.92513728]
[1737801392470,0.83978989,104420.0,104410.0,0.40142937]
[1737801394071,0.7819869,104420.0,104410.0,0.40142937]
[1737801394666,0.65682517,104420.0,104400.0,0.40157275]
[1737801394872,0.153264,104410.0,104400.0,0.40157275]
[1737801395061,0.21106699,104410.0,104400.0,0.40157275]
[1737801396571,0.153264,104410.0,104400.0,0.45937574]
[1737801397479,0.153264,104410.0,104400.0,0.40157275]
[1737801398380,0.26807915,104410.0,104400.0,0.17218454]
[1737801399179,0.32588214,104410.0,104400.0,0.17218454]
[1737801401775,0.33568595,104410.0,104400.0,0.17218454]
[1737801402878,0.33568595,104410.0,104400.0,0.00014338]
[1737801412791,0.27788296,104410.0,104400.0,0.00014338]
[1737801413289,0.26807915,104410.0,104400.0,0.57202537]
[1737801413488,0.26807915,104410.0,104400.0,0.66102836]
[1737801413685,0.26807915,104410.0,104400.0,0.69392836]
[1737801414180,0.11481515,104410.0,104400.0,0.69392836]
[1737801416401,0.11481515,104410.0,104400.0,0.73583798]
[1737801416802,0.26807015,104420.0,104410.0,0.153264]
[1737801417102,0.26807015,104420.0,104410.0,0.77271887]
[1737801417103,0.11481515,104420.0,104410.0,0.77271887]
[1737801418206,0.14292218,104430.0,104420.0,0.26885598]
[1737801418408,0.14292218,104430.0,104420.0,0.69335598]
[1737801419999,0.14292218,104430.0,104420.0,0.66579119]
[1737801421899,0.00143705,104440.0,104430.0,0.153235]
[1737801422201,0.00143705,104440.0,104430.0,0.63427619]
[1737801422800,0.185109,104450.0,104430.0,0.63427619]
[1737801423001,0.185109,104450.0,104440.0,0.44884119]
[1737801423209,0.0319,104450.0,104440.0,0.60206119]
[1737801423706,0.0319,104450.0,104440.0,0.63306119]
[1737801426204,0.29611618,104460.0,104450.0,0.153206]
[1737801426404,0.29611618,104460.0,104450.0,0.63244719]
[1737801427205,0.185978,104470.0,104450.0,0.63244719]
[1737801427413,0.185978,104470.0,104460.0,0.44884119]
[1737801428401,0.185978,104470.0,104460.0,0.3608]
[1737801431009,0.153191,104460.0,104450.0,0.71139461]
[1737801431212,0.153191,104460.0,104450.0,0.19331342]
[1737801431417,0.513991,104460.0,104450.0,0.07894742]
[1737801431714,0.545591,104460.0,104450.0,0.07894742]
[1737801432301,0.545591,104460.0,104450.0,0.16291342]
[1737801432608,0.545591,104460.0,104450.0,0.32019461]
[1737801433014,0.184791,104460.0,104450.0,0.68099461]
[1737801434520,0.185981,104470.0,104460.0,0.153191]
[1737801434820,0.185981,104470.0,104460.0,0.60203219]
[1737801438212,0.185981,104470.0,104460.0,0.513991]
[1737801442817,0.27402219,104470.0,104460.0,0.3608]
[1737801443020,0.153191,104460.0,104450.0,0.23210542]
[1737801443215,0.575791,104460.0,104450.0,0.07890742]
[1737801443618,0.575791,104460.0,104450.0,0.16291342]
[1737801444425,0.575791,104460.0,104450.0,0.00970742]
[1737801444628,0.4226,104460.0,104440.0,0.84277881]
[1737801444925,0.153206,104450.0,104440.0,0.84277881]
[1737801445312,0.153206,104450.0,104440.0,0.77357881]
[1737801445522,0.153206,104450.0,104440.0,0.84277881]
[1737801445718,0.186206,104450.0,104440.0,0.84277881]
[1737801446523,0.186206,104450.0,104440.0,0.85243743]
[1737801447420,0.186206,104450.0,104440.0,0.78323743]
[1737801451927,0.186206,104450.0,104440.0,1.01262564]
[1737801452128,0.186206,104450.0,104440.0,1.00296702]
[1737801452329,0.186206,104450.0,104440.0,0.91492583]
[1737801453025,0.186206,104450.0,104440.0,1.00296702]
[1737801453425,0.186206,104450.0,104440.0,0.91492583]
[1737801456534,0.186206,104450.0,104440.0,0.74354859]
[1737801457626,0.186206,104450.0,104440.0,0.80131342]
[1737801464528,0.186206,104450.0,104440.0,0.8010604]
[1737801466635,0.186206,104450.0,104440.0,1.08821116]
[1737801468148,0.24397083,104450.0,104440.0,0.51653897]
[1737801469837,0.60477083,104450.0,104440.0,0.51653897]
[1737801470235,0.61434937,104450.0,104440.0,0.51653897]
[1737801471739,0.55658454,104450.0,104440.0,0.5743038]
[1737801472045,0.68992818,104450.0,104440.0,0.11552966]
[1737801472351,0.29612818,104450.0,104440.0,0.62954966]
[1737801472541,0.29612818,104450.0,104440.0,0.66074966]
[1737801476944,0.153206,104450.0,104440.0,0.89013787]
[1737801478145,0.51414038,104460.0,104450.0,0.153206]
[1737801478344,0.15334038,104460.0,104450.0,0.60247083]
[1737801479950,0.15334038,104460.0,104450.0,0.63367083]
[1737801481553,0.15334038,104460.0,104450.0,0.86305904]
[1737801481855,0.15334038,104460.0,104450.0,0.50225904]
[1737801482654,0.15334038,104460.0,104450.0,0.86305904]
[1737801483052,0.15334038,104460.0,104450.0,0.87272394]
[1737801483453,0.15334038,104460.0,104450.0,0.51192394]
[1737801483654,0.15334038,104460.0,104450.0,0.87272394]
[1737801484455,0.15334038,104460.0,104450.0,0.80115904]
[1737801484654,0.18354038,104460.0,104450.0,0.80115904]
[1737801485259,0.24130521,104460.0,104450.0,0.22938821]
[1737801485462,0.27270521,104460.0,104450.0,0.22938821]
[1737801485757,0.21494038,104460.0,104450.0,0.28715304]
[1737801486766,0.27270521,104460.0,104450.0,0.22938821]
[1737801487985,0.38745617,104460.0,104450.0,0.17167035]
[1737801491581,0.38745617,104460.0,104440.0,0.51653897]
[1737801491582,0.153206,104450.0,104440.0,0.51653897]
[1737801491779,0.60417083,104450.0,104440.0,0.51653897]
[1737801493683,0.63446303,104450.0,104440.0,0.51653897]
[1737801495170,0.64385893,104450.0,104440.0,0.51653897]
[1737801495583,0.64385893,104450.0,104430.0,0.34513745]
[1737801495584,0.15322,104440.0,104430.0,0.00014338]
[1737801495791,0.57862,104440.0,104430.0,0.00014338]
[1737801498477,0.66667703,104440.0,104430.0,0.00014338]
[1737801499686,0.8671446,104440.0,104430.0,0.00014338]
[1737801500987,0.77908757,104440.0,104430.0,0.00014338]
[1737801503480,0.8671446,104440.0,104430.0,0.00014338]
[1737801506493,0.77908757,104440.0,104430.0,0.00014338]
[1737801510294,0.66453467,104440.0,104430.0,0.00014338]
[1737801512691,0.63273467,104440.0,104430.0,0.00014338]
[1737801513194,0.63273467,104440.0,104430.0,0.03014338]
[1737801513589,0.59993467,104440.0,104430.0,0.27143541]
[1737801513794,0.59993467,104440.0,104430.0,0.27225115]
[1737801514190,0.71448757,104440.0,104430.0,0.27225115]
[1737801515585,0.71448757,104440.0,104430.0,0.11901615]
[1737801517197,0.71448757,104440.0,104430.0,0.06124338]
[1737801517795,0.59993467,104440.0,104430.0,0.06124338]
[1737801518093,0.59993467,104440.0,104430.0,0.11901615]
[1737801518294,0.59993467,104440.0,104430.0,0.06124338]
[1737801520795,0.59993467,104440.0,104430.0,0.11901615]
[1737801521587,0.71448757,104440.0,104430.0,0.06124338]
[1737801524993,0.71448757,104440.0,104430.0,0.07072771]
[1737801525605,0.77226034,104440.0,104430.0,0.00962771]
[1737801525798,0.80426034,104440.0,104430.0,0.00962771]
[1737801525998,0.86126785,104440.0,104430.0,0.00962771]
[1737801526508,0.80349508,104440.0,104430.0,0.00962771]
[1737801527405,0.80349508,104440.0,104430.0,0.00014338]
[1737801528007,0.86126785,104440.0,104430.0,0.00014338]
[1737801529707,0.89406785,104440.0,104430.0,0.00014338]
[1737801532002,0.95184062,104440.0,104430.0,0.00014338]
[1737801532804,0.83728772,104440.0,104430.0,0.00014338]
[1737801538310,0.77951495,104440.0,104430.0,0.00014338]
[1737801555024,0.72174218,104440.0,104430.0,0.00014338]
[1737801557626,0.77951495,104440.0,104430.0,0.00014338]
[1737801558934,0.72174218,104440.0,104430.0,0.00014338]
[1737801559119,0.29614218,104440.0,104430.0,0.05791615]
[1737801559431,0.29614218,104440.0,104430.0,0.24225115]
[1737801559617,0.29614218,104440.0,104430.0,0.27465115]
[1737801561617,0.29614218,104440.0,104430.0,0.21687838]
[1737801561818,0.35391495,104440.0,104430.0,0.00014338]
[1737801562015,0.41711495,104440.0,104430.0,0.00014338]
[1737801562432,0.83568772,104440.0,104430.0,0.00014338]
[1737801563118,0.77791495,104440.0,104430.0,0.00014338]
[1737801563316,0.80761477,104440.0,104430.0,0.22953159]
[1737801563921,0.749842,104440.0,104430.0,0.22953159]
[1737801565227,0.80761477,104440.0,104430.0,0.22953159]
[1737801566630,1.00686569,104440.0,104430.0,0.00014338]
[1737801568116,1.06463846,104440.0,104430.0,0.00014338]
[1737801568427,0.153235,104430.0,104420.0,0.22938821]
[1737801568630,0.60500777,104430.0,104420.0,0.22938821]
[1737801569034,0.66278054,104430.0,104420.0,0.22938821]
[1737801569533,0.60500777,104430.0,104420.0,0.22938821]
[1737801571238,0.15325,104420.0,104410.0,0.00014338]
[1737801571525,0.63502277,104420.0,104410.0,0.00014338]
[1737801574632,0.69279554,104420.0,104410.0,0.00014338]
[1737801575019,0.89357304,104420.0,104410.0,0.00014338]
[1737801582641,0.83580027,104420.0,104410.0,0.00014338]
[1737801583845,0.89357304,104420.0,104410.0,0.00014338]
[1737801584048,0.83580027,104420.0,104410.0,0.00014338]
[1737801589039,0.89357304,104420.0,104410.0,0.00014338]
[1737801589554,0.83580027,104420.0,104410.0,0.00014338]
[1737801590939,0.80470027,104420.0,104410.0,0.00014338]
[1737801592249,0.80470027,104420.0,104410.0,0.03024338]
[1737801592443,0.3540275,104420.0,104410.0,0.24128015]
[1737801592644,0.3540275,104420.0,104410.0,0.63358015]
[1737801598054,0.2392975,104420.0,104410.0,1.39678718]
[1737801601369,0.2392975,104420.0,104410.0,1.16739897]
[1737801605064,0.2392975,104420.0,104410.0,0.92073091]
[1737801609065,0.15325,104420.0,104410.0,0.92073091]
[1737801613575,0.15325,104420.0,104410.0,1.39473003]
[1737801616980,0.15325,104420.0,104410.0,1.16521795]
[1737801617874,0.15325,104420.0,104410.0,1.13371795]
[1737801618181,0.18575,104420.0,104410.0,1.13371795]
[1737801618673,0.18575,104420.0,104410.0,0.74281795]
[1737801618874,0.21585,104420.0,104410.0,0.68504518]
[1737801619478,0.21585,104420.0,104410.0,0.74281795]
[1737801621883,0.63442277,104420.0,104410.0,0.53178118]
[1737801622786,0.69219554,104420.0,104410.0,0.53178118]
[1737801624176,0.94984772,104420.0,104410.0,0.40220145]
[1737801624582,0.95920673,104420.0,104410.0,0.40220145]
[1737801624983,0.90143396,104420.0,104410.0,0.40220145]
[1737801626578,0.89207495,104420.0,104410.0,0.40220145]
[1737801628078,0.89207495,104420.0,104410.0,0.00014338]
[1737801631389,0.89207495,104420.0,104410.0,0.05791615]
[1737801631582,0.83430218,104420.0,104410.0,0.05791615]
[1737801631983,0.47350218,104420.0,104410.0,0.05791615]
[1737801632285,0.41659444,104420.0,104410.0,0.57198115]
[1737801632487,0.41659444,104420.0,104410.0,0.21118115]
[1737801632687,0.41659444,104420.0,104410.0,0.57198115]
[1737801635891,0.41659444,104420.0,104410.0,0.97403922]
[1737801635892,0.30186444,104420.0,104410.0,0.97403922]
[1737801638395,0.30186444,104420.0,104410.0,0.98346577]
[1737801640887,0.27176444,104420.0,104410.0,0.98346577]
[1737801641300,0.27176444,104420.0,104410.0,1.01376577]
[1737801642800,0.18575,104420.0,104410.0,1.12860593]
[1737801645901,0.18575,104420.0,104410.0,1.37638999]
[1737801649008,0.18575,104420.0,104410.0,1.34608999]
[1737801654120,0.15325,104420.0,104410.0,1.34608999]
[1737801654315,0.15325,104420.0,104410.0,1.41068999]
[1737801655824,0.15325,104420.0,104410.0,1.46846276]
[1737801656029,0.15325,104420.0,104410.0,1.41068999]
[1737801656326,0.35398644,104430.0,104420.0,0.15325]
[1737801656530,0.35398644,104430.0,104420.0,0.62959554]
[1737801656714,0.35398644,104430.0,104420.0,0.57182277]
[1737801657228,0.20074444,104430.0,104420.0,0.62959554]
[1737801657417,0.20074444,104430.0,104420.0,0.66129554]
[1737801657719,0.11473,104430.0,104420.0,0.70252243]
[1737801659418,0.11473,104430.0,104420.0,0.70241909]
[1737801660121,0.14306556,104440.0,104430.0,0.153235]
[1737801660327,0.17117797,104450.0,104440.0,0.15322]
[1737801660524,0.17117797,104450.0,104440.0,0.66126554]
[1737801662731,0.50814193,104460.0,104450.0,0.153206]
[1737801662932,0.50814193,104460.0,104450.0,0.21097877]
[1737801667025,0.39473673,104460.0,104450.0,0.21097877]
[1737801669140,0.33696396,104460.0,104450.0,0.21097877]
[1737801680743,0.153206,104450.0,104440.0,0.8223664]
[1737801680936,0.185206,104450.0,104440.0,0.8223664]
[1737801681132,0.185206,104450.0,104440.0,0.54201463]
[1737801681337,0.60377877,104450.0,104440.0,0.17166408]
[1737801682641,0.60377877,104450.0,104440.0,0.40054952]
[1737801686142,0.61317866,104450.0,104440.0,0.40054952]
[1737801687843,0.61317866,104450.0,104430.0,0.00014338]
[1737801687844,0.15322,104440.0,104430.0,0.00014338]
[1737801688043,0.63349277,104440.0,104430.0,0.00014338]
[1737801691350,0.71940647,104440.0,104430.0,0.00014338]
[1737801699246,0.71940647,104440.0,104430.0,0.05791615]
[1737801699247,0.6616337,104440.0,104430.0,0.05791615]
[1737801699651,0.6302337,104440.0,104430.0,0.09101615]
[1737801699950,0.5999337,104440.0,104430.0,0.24425115]
[1737801700155,0.5999337,104440.0,104430.0,0.27615115]
[1737801704157,0.5999337,104440.0,104430.0,0.2858004]
[1737801704355,0.2391337,104440.0,104430.0,0.2858004]
[1737801704554,0.2391337,104440.0,104430.0,0.6779004]
[1737801707253,0.15322,104440.0,104430.0,1.07844992]
[1737801707459,0.15322,104440.0,104430.0,0.71764992]
[1737801707862,0.15322,104440.0,104430.0,1.07844992]
[1737801708057,0.15322,104440.0,104430.0,0.71764992]
[1737801708358,0.15322,104440.0,104430.0,1.07844992]
[1737801716165,0.2391337,104440.0,104430.0,1.07844992]
[1737801720870,0.2391337,104440.0,104430.0,0.90678584]
[1737801720871,0.15322,104440.0,104430.0,0.90678584]
[1737801721770,0.15322,104440.0,104430.0,0.96455861]
[1737801722770,0.2391257,104450.0,104440.0,0.15322]
[1737801722972,0.2391257,104450.0,104440.0,0.26876554]
[1737801724276,0.2391257,104450.0,104440.0,0.62956554]
[1737801725980,0.2391257,104450.0,104440.0,1.03029814]
[1737801730479,0.153212,104450.0,104440.0,0.85845098]
[1737801733488,0.153212,104450.0,104440.0,1.3978677]
[1737801735690,0.186112,104450.0,104440.0,1.3978677]
[1737801738691,0.153212,104450.0,104440.0,1.4670677]
[1737801741597,0.153212,104450.0,104440.0,1.3978677]
[1737801741796,0.153212,104450.0,104440.0,1.4670677]
[1737801751798,0.153212,104450.0,104440.0,1.58317633]
[1737801755103,0.153212,104450.0,104440.0,1.23818226]
[1737801757895,0.2391257,104450.0,104440.0,1.23818226]
[1737801759599,0.2391257,104450.0,104440.0,1.18040949]
[1737801760002,0.2391257,104450.0,104440.0,1.11120949]
[1737801760202,0.5999257,104450.0,104440.0,0.69263672]
[1737801760399,0.6331257,104450.0,104440.0,0.53941672]
[1737801760600,0.6331257,104450.0,104440.0,0.59718949]
[1737801760998,0.6331257,104450.0,104440.0,1.23774779]
[1737801761306,0.69089847,104450.0,104440.0,1.17997502]
[1737801761992,0.6331257,104450.0,104440.0,1.23774779]
[1737801762697,0.6331257,104450.0,104440.0,1.17997502]
[1737801763006,0.6331257,104450.0,104440.0,1.23774779]
[1737801763706,0.69034178,104450.0,104440.0,0.22981812]
[1737801764109,0.74811455,104450.0,104440.0,0.22981812]
[1737801764401,0.74811455,104450.0,104440.0,0.17204535]
[1737801766304,0.75788549,104450.0,104440.0,0.17204535]
[1737801767103,0.75788549,104450.0,104430.0,0.2299615]
[1737801767104,0.15322,104440.0,104430.0,0.2299615]
[1737801767409,0.21432,104440.0,104430.0,0.2299615]
[1737801770902,0.30027752,104440.0,104430.0,0.2299615]
[1737801773717,0.66107752,104440.0,104430.0,0.2299615]
[1737801774109,0.26937752,104440.0,104430.0,0.44096927]
[1737801774414,0.23917752,104440.0,104430.0,0.47256927]
[1737801774615,0.15322,104440.0,104430.0,0.30355115]
[1737801774810,0.15322,104440.0,104430.0,0.66435115]
[1737801775109,0.15322,104440.0,104430.0,0.72212392]
[1737801775907,0.15322,104440.0,104430.0,0.66435115]
[1737801776912,0.15322,104440.0,104430.0,0.72212392]
[1737801777112,0.15322,104440.0,104430.0,0.66435115]
[1737801778116,0.15322,104440.0,104430.0,1.06579031]
[1737801779214,0.15322,104440.0,104430.0,1.12356308]
[1737801779914,0.08595752,104450.0,104430.0,0.97032808]
[1737801780115,0.23917052,104450.0,104440.0,0.62956554]
[1737801783212,0.23917052,104450.0,104440.0,0.57179277]
[1737801784711,0.23917052,104450.0,104440.0,0.58115538]
[1737801786618,0.153213,104450.0,104440.0,0.98259454]
[1737801790612,0.57178577,104450.0,104440.0,0.55465916]
[1737801791822,0.57178577,104450.0,104440.0,0.40143916]
[1737801794014,0.77244702,104450.0,104440.0,0.17204535]
[1737801797027,0.15322,104440.0,104430.0,0.46176487]
[1737801797225,0.21652,104440.0,104430.0,0.46176487]
[1737801800522,0.30256375,104440.0,104430.0,0.69115868]
[1737801801422,0.36033652,104440.0,104430.0,0.69115868]
[1737801802125,0.30256375,104440.0,104430.0,0.69115868]
[1737801802322,0.30256375,104440.0,104430.0,0.62195868]
[1737801804120,0.26956375,104440.0,104430.0,0.62195868]
[1737801808132,0.26956375,104440.0,104430.0,0.46873068]
[1737801808324,0.30036375,104440.0,104430.0,0.46873068]
[1737801808633,0.30036375,104440.0,104430.0,0.41095791]
[1737801808634,0.35813652,104440.0,104430.0,0.41095791]
[1737801809326,0.30036375,104440.0,104430.0,0.41095791]
[1737801809830,0.30036375,104440.0,104430.0,0.46873068]
[1737801811926,0.23926375,104440.0,104430.0,0.62196568]
[1737801812128,0.23926375,104440.0,104430.0,1.04636568]
[1737801812334,0.23926375,104440.0,104430.0,1.07826568]
[1737801814722,0.23926375,104440.0,104430.0,1.13603845]
[1737801814924,0.23926375,104440.0,104430.0,1.07826568]
[1737801818347,0.15322,104440.0,104430.0,1.22040766]
[1737801822343,0.20074748,104450.0,104440.0,0.15322]
[1737801822344,0.35396248,104450.0,104440.0,0.15322]
[1737801822544,0.35396248,104450.0,104440.0,0.21099277]
[1737801826554,0.35396248,104450.0,104440.0,0.61230799]
[1737801828453,0.35396248,104450.0,104440.0,0.67008076]
[1737801830365,0.35396248,104450.0,104440.0,1.03088076]
[1737801834958,0.153215,104450.0,104440.0,1.40005064]
[1737801836870,0.29609086,104460.0,104440.0,1.24683064]
[1737801837070,0.44928786,104460.0,104450.0,0.21097877]
[1737801842555,0.44928786,104460.0,104450.0,0.6121585]
[1737801845371,0.44928786,104460.0,104450.0,0.62153315]
[1737801863587,0.50637389,104460.0,104450.0,0.99218243]
[1737801871294,0.36324411,104460.0,104450.0,0.99218243]
[1737801875583,0.50637389,104460.0,104450.0,0.99218243]
[1737801879697,0.47557389,104460.0,104450.0,0.99218243]
[1737801882691,0.41117389,104460.0,104450.0,0.99218243]
[1737801882995,0.41117389,104460.0,104450.0,1.05648243]
[1737801883195,0.26804411,104460.0,104450.0,1.05648243]
[1737801884996,0.26804411,104460.0,104450.0,1.08778243]
[1737801895101,0.26804411,104460.0,104450.0,1.05648243]
[1737801895302,0.29954411,104460.0,104450.0,1.05648243]
[1737801898908,0.29954411,104460.0,104450.0,1.02538243]
[1737801899103,0.33004411,104460.0,104450.0,1.02538243]
[1737801903611,0.38781688,104460.0,104450.0,0.77182901]
[1737801903809,0.83758965,104460.0,104450.0,0.77182901]
[1737801904107,0.77981688,104460.0,104450.0,0.77182901]
[1737801905501,0.92294666,104460.0,104450.0,0.77182901]
[1737801908815,0.80824293,104460.0,104450.0,0.40140969]
[1737801916215,0.92307101,104460.0,104450.0,0.17208671]
[1737801920324,0.98084378,104460.0,104450.0,0.17208671]